Cogmind - Beta 13 @@@ ROGUE MODE // 2024.05.05 @ 05:54:34 Player: A Moose Result: Destroyed by S-27 Virus with Autogun Performance ------------- Evolutions (6) 3000 Regions Visited (12) 2400 Robots Destroyed (80) 400 Value Destroyed (3063) 3063 Prototype IDs (10) 200 Alien Tech Used (0) 0 Bonus (2366) 2366 TOTAL SCORE: 11429 Bonus ------- Pacifist 200 High Alert Combat Kills 203 Follower Combat Kills 463 Entered DSFs 500 Met Warlord at Base 500 MAIN.C Attacked Warlord 500 Cogmind --------- Core Integrity 0/1150 Matter 300/300 Energy 99/100 System Corruption 3% Temperature Cool (0) Movement Core (50) Location -4/Factory Parts ------- > --- POWER (2) -------- (None) > --- PROPULSION (4) --- (None) > --- UTILITY (10) ----- Advanced Salvage Targeting Computer Advanced System Shield > --- WEAPON (3) ------- (None) > --- INVENTORY (5) ---- Energy Well (350) Peak State ------------ > --- POWER ------------ Cold Fusion Reactor Antimatter Reactor > --- PROPULSION ------- Improved Heavy Treads Improved Heavy Treads > --- UTILITY ---------- Experimental Cooling System Large Storage Unit Advanced Salvage Targeting Computer Improved Targeting Computer Advanced Melee Analysis Suite Improved Kinecellerator Improved Transmission Jammer Makeshift Ablative Armor Improved Hacking Suite Advanced System Shield > --- WEAPON ----------- Vortex Rifle Improved KE Penetrator Heavy Gauss Cannon > --- INVENTORY -------- Antimatter Reactor Light Antimatter Reactor Antigrav System Antigrav System Improved Antigrav System Advanced Heat Sink Improved Coolant Injector Energy Well Improved Force Booster Vortex Rifle Improved KE Penetrator Thermoblaster Improved Remote Datajack Vortex Lance Sapper Charge [Rating: 123] Favorites ----------- Power Makeshift Power Source Engine Makeshift Power Source Power Core Light Nuclear Core Reactor Light Antimatter Reactor Propulsion Makeshift Hover Unit Treads Improved Heavy Treads Leg Aluminum Leg Wheel Compact Wheel Hover Unit Makeshift Hover Unit Flight Unit VTOL Module Utility Improved Targeting Computer Device Improved Coolant Injector Storage Small Storage Unit Processor Improved Targeting Computer Hackware Advanced System Shield Protection Makeshift Ablative Armor Weapon Improved KE Penetrator Energy Gun Vortex Rifle Ballistic Gun Improved KE Penetrator Ballistic Cannon Heavy Gauss Cannon Launcher Rocket Launcher Special Weapon Improved Remote Datajack Slashing Weapon Power Sword Piercing Weapon Vortex Lance Build | -11 -10 -9 -8 -7 -6 -6 -5 -5 -5 -5 -4 -4 ------- Run | Yrd Mat Mat Mat Fac Fac DSF Fac Upp Upp War Pro Fac Slots Evolved 12 | . . 2 2 2 2 . 2 . . . . 2 Power 1 | . . . . 1 . . . . . . . . Propulsion 2 | . . 1 1 . . . . . . . . . Utility 8 | . . 1 1 1 2 . 1 . . . . 2 Weapon 1 | . . . . . . . 1 . . . . . Parts Attached 119 | 7 . 8 13 3 . 3 21 2 3 13 . 46 Power 16 | 1 . 2 1 . . . 3 . . 2 . 7 Engine 6 | 1 . 2 1 . . . . . . 1 . 1 Core 4 | . . . . . . . 3 . . . . 1 Reactor 6 | . . . . . . . . . . 1 . 5 Propulsion 44 | 3 . 4 5 . . 3 7 2 . 5 . 15 Treads 3 | . . . . . . . . . . . . 3 Leg 3 | 2 . . . . . . . . . . . 1 Wheel 7 | 1 . . 1 . . . . . . . . 5 Hover 15 | . . 4 . . . . . . . 5 . 6 Flight 16 | . . . 4 . . 3 7 2 . . . . Utility 31 | 1 . 1 4 3 . . 6 . 2 2 . 12 Device 13 | . . . 1 . . . 3 . . 1 . 8 Storage 4 | 1 . . 1 . . . . . . . . 2 Processor 8 | . . 1 . 3 . . 2 . 1 . . 1 Hackware 2 | . . . . . . . 1 . 1 . . . Protection 4 | . . . 2 . . . . . . 1 . 1 Artifact . | . . . . . . . . . . . . . Weapon 28 | 2 . 1 3 . . . 5 . 1 4 . 12 Energy Gun 8 | 1 . . 1 . . . 1 . . 1 . 4 Energy Cannon . | . . . . . . . . . . . . . Ballistic Gun 7 | 1 . . 1 . . . 3 . . 1 . 1 Ballistic Cannon 2 | . . . . . . . . . . . . 2 Launcher 5 | . . 1 1 . . . . . . . . 3 Special Weapon 2 | . . . . . . . 1 . . 1 . . Impact Weapon . | . . . . . . . . . . . . . Slashing Weapon 1 | . . . . . . . . . . . . 1 Piercing Weapon 3 | . . . . . . . . . 1 1 . 1 Special Melee Weapon . | . . . . . . . . . . . . . Unidentified Prototypes 6 | . . . 1 . . . 1 . . 2 . 2 Parts Lost 66 | . . . 10 . . 5 8 4 . . . 39 Power 6 | . . . 1 . . . 1 . . . . 4 Propulsion 27 | . . . 4 . . 4 5 2 . . . 12 Utility 17 | . . . 2 . . 1 1 . . . . 13 Weapon 16 | . . . 3 . . . 1 2 . . . 10 Highest Loss Streak 12 | . . . 10 . . 5 3 4 . . . 12 To Critical Strikes . | . . . . . . . . . . . . . Average Slot Usage (%) 79 | . 85 82 48 58 . 42 50 82 85 96 100 78 Engine 3 | . 14 11 2 . . . . . . 4 5 1 Core 1 | . . . . . . . 2 5 5 4 . . Reactor 2 | . . . . . . . . . . . 5 6 Leg 1 | . 28 5 . . . . . . . . . . Wheel 1 | . . . 1 . . . . . . . . 3 Hover 9 | . . 25 5 . . . . . . 14 23 5 Flight 6 | . . . 11 23 . 15 19 21 23 7 . . Device 8 | . . . 1 . . . 3 11 11 9 11 13 Storage 3 | . 14 11 9 7 . 2 . . . . . 3 Processor 15 | . . 7 9 27 . 24 13 23 23 20 17 14 Hackware 6 | . . . . . . . . 5 10 11 11 7 Protection 2 | . . . 1 . . . . . . 3 5 2 Energy Gun 2 | . 14 3 . . . . 2 . . 1 . 3 Ballistic Gun 5 | . 14 11 1 . . . 4 9 5 5 5 3 Special Weapon 1 | . . . . . . . 1 3 . 1 5 . Piercing Weapon 2 | . . . . . . . . . 3 5 5 2 Naked Turns . | . . . . . . . . . . . . . Heaviest Build 89 | 11 11 15 16 5 5 5 20 20 15 40 40 89 Greatest Support 150 | 20 20 20 20 12 9 12 22 20 16 47 46 150 Greatest Overweight (x) 5 | . . . 3 . . . 1 1 . 1 . 5 Average Overweight (x) . | . . . . . . . . . . . . . Largest Inventory Capacity 15 | 8 8 8 15 8 8 8 5 5 5 5 5 15 Average Capacity 7 | 7 8 8 8 8 8 5 5 5 5 5 5 10 Most Carried 15 | 5 5 8 8 8 8 8 5 5 5 5 5 15 Average Carried 6 | 2 4 7 6 8 8 5 4 4 4 4 5 9 Final Capacity 8 | 8 8 8 8 8 8 5 5 5 5 5 5 5 Final Carried 8 | 3 5 8 8 8 8 5 5 4 5 5 5 1 Class Distribution -------------------- 29% | Derelict-Mutant 22% | Mutant 14% | Sprinter 10% | Hacker-Gunner 6% | Scavenger-Sprinter 6% | Scavenger-Mutant 4% | Hacker-Sprinter 3% | Commander-Mutant Dominant Class ---------------- Mutant | -10/Materials Mutant | -9/Materials Mutant | -8/Materials Scavenger-Sprinter | -7/Factory Scavenger-Sprinter | -6/Factory Scavenger-Sprinter | -6/DSF Sprinter | -5/Factory Sprinter | -5/Upper Caves Hacker-Sprinter | -5/Upper Caves Derelict-Mutant | -5/Warlord Derelict-Mutant | -4/Proximity Caves Hacker-Gunner | -4/Factory Resources | -11 -10 -9 -8 -7 -6 -6 -5 -5 -5 -5 -4 -4 ----------- Run | Yrd Mat Mat Mat Fac Fac DSF Fac Upp Upp War Pro Fac Matter Collected 2101 | 221 . 206 39 . . . 444 144 71 173 45 758 Remotely . | . . . . . . . . . . . . . Salvage Created 2796 | . . 326 112 . . . 409 119 . . 55 1775 Parts 150 | . . 32 10 . . . 27 8 . . 2 71 Haulers Intercepted 3 | . . 1 1 . . . . . . . . 1 Recyclers Shooed . | . . . . . . . . . . . . . Parts Field Recycled . | . . . . . . . . . . . . . Retrieved Matter . | . . . . . . . . . . . . . Parts Self-Destructed 17 | . . . . . . . . 8 . . 9 . Prevented 1 | . . . . . . . . . 1 . . . Kills | -11 -10 -9 -8 -7 -6 -6 -5 -5 -5 -5 -4 -4 ------- Run | Yrd Mat Mat Mat Fac Fac DSF Fac Upp Upp War Pro Fac Combat Hostiles Destroyed 66 | . . 13 6 . . . 15 4 . . 2 26 Melee 11 | . . . . . . . . . . . . 11 Guns 32 | . . 2 . . . . 13 4 . . 2 11 Cannons 1 | . . . . . . . . . . . . 1 AOE 22 | . . 11 6 . . . 2 . . . . 3 Classes Destroyed 15 | . . 4 2 . . . 2 . . . . 7 Worker 4 | . . . . . . . . . . . . 4 Builder 2 | . . . . . . . 1 . . . . 1 Hauler 3 | . . 1 1 . . . . . . . . 1 Recycler 1 | . . . . . . . . . . . . 1 Operator 1 | . . . . . . . . . . . . 1 Watcher 3 | . . 3 . . . . . . . . . . Swarmer 30 | . . 7 . . . . 13 4 . . 2 4 Cutter 2 | . . . 2 . . . . . . . . . Grunt 23 | . . 6 3 . . . . . . . . 14 Brawler 1 | . . . . . . . . . . . . 1 Duelist 1 | . . . . . . . . . . . . 1 Sentry 2 | . . . 1 . . . . . . . . 1 Hunter 2 | . . . . . . . . . . . . 2 Programmer 4 | . . . . . . . 2 . . . . 2 Behemoth 1 | . . . . . . . . . . . . 1 Best Kill Streak 11 | . . 11 7 . . . 5 4 . . 1 6 Combat Bots Only 9 | . . 9 6 . . . 5 4 . . 1 6 Max Kills in Single Turn 3 | . . 3 2 . . . 2 1 . . 1 3 Gunslinging 1 | . . . . . . . . . . . . 1 Exploded 2 | . . 2 2 . . . 1 . . . . 1 Melee 1 | . . . . . . . . . . . . 1 Uniques/NPCs Destroyed . | . . . . . . . . . . . . . Combat | -11 -10 -9 -8 -7 -6 -6 -5 -5 -5 -5 -4 -4 -------- Run | Yrd Mat Mat Mat Fac Fac DSF Fac Upp Upp War Pro Fac Hostile Shots Fired 751 | . 16 34 60 27 . 9 107 25 . 3 10 460 Missed 267 | . 7 18 24 22 . 2 44 11 . 1 8 130 Damage Taken 8817 | . 78 165 899 43 . 391 1024 211 . 19 69 5918 Core 2017 | . 10 26 142 5 . 207 402 55 . . 15 1155 Absorbed by Shields 830 | . . . . . . . . . . 18 64 748 Reduced by Siege Mode 109 | . . . . . . . . . . . . 109 Core Remaining (%) 84 | 100 96 93 74 99 . 75 . . . . 52 . Volleys Fired 139 | . . 17 12 . . . 27 8 . 8 8 59 Largest 3 | . . 2 2 . . . 2 3 . 2 1 3 Hottest 300 | . . 70 83 . . . 75 83 . 73 33 300 Shots Fired 237 | . . 34 23 . . . 38 15 . 9 8 110 Gun 170 | . . 21 11 . . . 38 12 . 2 7 79 Cannon 25 | . . . . . . . . . . . . 25 Launcher 31 | . . 13 12 . . . . . . . . 6 Special 11 | . . . . . . . . 3 . 7 1 . Kinetic 146 | . . 17 5 . . . 27 12 . 1 7 77 Thermal 37 | . . 4 6 . . . 11 3 . . . 13 Explosive 25 | . . 13 12 . . . . . . . . . Electromagnetic . | . . . . . . . . . . . . . Entropic 21 | . . . . . . . . . . 1 . 20 Robot Hit Streak 28 | . . 3 4 . . . 8 6 . 8 3 28 Robot Miss Streak 3 | . . 2 2 . . . 3 1 . . 3 3 Penetration Max 1 | . . . . . . . 1 . . . . 1 Secondary Targets 3 | . . . . . . . 1 . . . . 2 Max Gunslinging Chain 1 | . . . . . . . 1 . . . . 1 Shots Hit Robots 194 | . . 14 12 . . . 22 10 . 7 6 123 Core Hits 127 | . . 22 26 . . . 23 4 . . 2 50 Critical Kills 1 | . . . . . . . . . . . . 1 Critical Parts Destroyed 4 | . . . . . . . 1 . . . . 3 Critical Strikes 21 | . . 1 . . . . 2 . . . 1 17 Burn 2 | . . 1 . . . . 1 . . . . . Destroy 7 | . . . . . . . 1 . . . . 6 Blast 3 | . . . . . . . . . . . . 3 Sever 1 | . . . . . . . . . . . . 1 Sunder 8 | . . . . . . . . . . . 1 7 Melee Attacks 46 | . . . . . . . . . . . 4 42 Impact . | . . . . . . . . . . . . . Slashing 21 | . . . . . . . . . . . . 21 Piercing . | . . . . . . . . . . . . . Entropic 25 | . . . . . . . . . . . 4 21 Sneak Attacks 4 | . . . . . . . . . . . . 4 Combat Hostiles . | . . . . . . . . . . . . . Follow-up Attacks . | . . . . . . . . . . . . . Damage Inflicted 10165 | . . 860 954 . . . 953 226 . . 244 6928 Guns 3545 | . . 89 75 . . . 581 210 . . 73 2517 Cannons 734 | . . . . . . . . . . . . 734 Explosions 2925 | . . 771 879 . . . 347 . . . . 928 Melee 2910 | . . . . . . . . . . . 171 2739 Ramming 35 | . . . . . . . 25 . . . . 10 Kinetic 2857 | . . 63 24 . . . 365 210 . . 73 2122 Thermal 926 | . . 26 94 . . . 216 16 . . . 574 Explosive 2409 | . . 771 836 . . . 344 . . . . 458 Electromagnetic 3 | . . . . . . . 3 . . . . . Impact . | . . . . . . . . . . . . . Slashing 974 | . . . . . . . . . . . . 974 Piercing . | . . . . . . . . . . . . . Entropic 2961 | . . . . . . . . . . . 171 2790 Highest Corruption 3 | . . . . . . . 2 2 2 2 . 3 Average Corruption 2 | . . . . . . . 1 2 2 2 . 2 Corruption Purged . | . . . . . . . . . . . . . Corruption Blocked . | . . . . . . . . . . . . . Effects 7 | . . . . . . . . 3 . . . 4 Message Errors 2 | . . . . . . . . 2 . . . . Matter Fused 2 | . . . . . . . . 1 . . . 1 Heat Flow Errors 1 | . . . . . . . . . . . . 1 Parts Rejected 1 | . . . . . . . . . . . . 1 Data Loss (minor) 1 | . . . . . . . . . . . . 1 Overload Shots . | . . . . . . . . . . . . . Overflow Damage 527 | . . 34 . . . . 22 . . . 26 445 Projectiles . | . . . . . . . . . . . . . Explosions 107 | . . 34 . . . . 22 . . . . 51 Melee 420 | . . . . . . . . . . . 26 394 Knockbacks 2 | . . . . . . . . . . . . 2 Impact . | . . . . . . . . . . . . . Kinetic 2 | . . . . . . . . . . . . 2 Secondary . | . . . . . . . . . . . . . Self-Inflicted Damage 144 | . . . 77 . . . 63 . . . . 4 Shots 3 | . . . 2 . . . 1 . . . . . Rammed 14 | . . . . . . . 9 . . . . 5 Targets Rammed 14 | . . . . . . . 9 . . . . 5 Kicked . | . . . . . . . . . . . . . Crushed . | . . . . . . . . . . . . . Highest Temperature 435 | . . 51 207 23 . . 82 . . 21 18 435 Average Temperature 53 | . . 19 89 23 . . 44 . . 12 7 78 Received Heat Transfer 1366 | . 6 69 189 15 . . 9 . . . 4 1074 Effects 2 | . . . . . . . . . . . . 2 Energy Bleed 1 | . . . . . . . . . . . . 1 Damage (minor) 1 | . . . . . . . . . . . . 1 Siege Activations 3 | . . . . . . . . . . . . 3 Total Turns 67 | . . . . . . . . . . . . 67 Longest Duration 47 | . . . . . . . . . . . . 47 Robots Corrupted . | . . . . . . . . . . . . . Combat Hostiles . | . . . . . . . . . . . . . Parts Fried . | . . . . . . . . . . . . . Impact Corruptions . | . . . . . . . . . . . . . Robots Melted . | . . . . . . . . . . . . . Combat Hostiles . | . . . . . . . . . . . . . Parts Melted 2 | . . . . . . . 1 . . . . 1 Heat Transferred 1938 | . . 148 248 . . . 600 37 . . . 905 Parts Sabotaged . | . . . . . . . . . . . . . Parts Stolen . | . . . . . . . . . . . . . Parts Stripped . | . . . . . . . . . . . . . Power Chain Reactions . | . . . . . . . . . . . . . Alert | -11 -10 -9 -8 -7 -6 -6 -5 -5 -5 -5 -4 -4 ------- Run | Yrd Mat Mat Mat Fac Fac DSF Fac Upp Upp War Pro Fac Peak Influence 897 | . 20 575 547 288 148 103 897 . . . . 524 Initial 248 | . . 8 242 248 148 103 27 . . . . . Average 286 | . 5 273 406 261 148 73 364 . . . . 287 Maximum Alert Level 3 | . . 2 2 1 . . 3 . . . . 2 Low Security (%) 28 | 100 100 36 . . 100 100 30 . . . . 20 Level 1 40 | . . 37 40 100 . . 21 . . . . 50 Level 2 28 | . . 26 59 . . . 33 . . . . 29 Level 3 2 | . . . . . . . 14 . . . . . Level 4 . | . . . . . . . . . . . . . Level 5 . | . . . . . . . . . . . . . High Security . | . . . . . . . . . . . . . Max Security . | . . . . . . . . . . . . . Squads Dispatched 15 | . 1 1 4 1 . . 4 . . . . 4 Investigation 5 | . 1 . . 1 . . 2 . . . . 1 Extermination 2 | . . . . . . . 1 . . . . 1 Reinforcement 8 | . . 1 4 . . . 1 . . . . 2 Assault . | . . . . . . . . . . . . . Garrison . | . . . . . . . . . . . . . Intercept . | . . . . . . . . . . . . . Searches Triggered . | . . . . . . . . . . . . . Construction Impeded 1 | . . . . . . . . . . . . 1 Haulers Reinforced . | . . . . . . . . . . . . . Active Scanning Responses . | . . . . . . . . . . . . . Cargo Convoy Interrupts . | . . . . . . . . . . . . . Stealth | -11 -10 -9 -8 -7 -6 -6 -5 -5 -5 -5 -4 -4 --------- Run | Yrd Mat Mat Mat Fac Fac DSF Fac Upp Upp War Pro Fac Distress Signals 3 | . . 1 . . . . 1 . . . . 1 Communications Jammed . | . . . . . . . . . . . . . Distress Signals . | . . . . . . . . . . . . . Times Spotted 175 | . 8 19 17 6 . 1 33 23 . 9 8 51 Peak Tracking Total 13 | . 8 8 11 5 . 1 7 10 . 5 5 13 Tactical Retreats 16 | . . . 2 . . . 6 4 . . . 4 Traps | -11 -10 -9 -8 -7 -6 -6 -5 -5 -5 -5 -4 -4 ------- Run | Yrd Mat Mat Mat Fac Fac DSF Fac Upp Upp War Pro Fac Traps Triggered 2 | . . . . 1 . . 1 . . . . . Indirectly . | . . . . . . . . . . . . . Trap Hack Attempts . | . . . . . . . . . . . . . Triggered . | . . . . . . . . . . . . . Disarmed . | . . . . . . . . . . . . . Reprogrammed . | . . . . . . . . . . . . . Reused . | . . . . . . . . . . . . . Traps Extracted . | . . . . . . . . . . . . . Installed . | . . . . . . . . . . . . . Triggered 9 | . . . . . . . . . 1 8 . . Time Bombs Activated 1 | . . . . . . . . . . . . 1 Exploded 1 | . . . . . . . . . . . . 1 Machines | -11 -10 -9 -8 -7 -6 -6 -5 -5 -5 -5 -4 -4 ---------- Run | Yrd Mat Mat Mat Fac Fac DSF Fac Upp Upp War Pro Fac Machines Disabled 17 | . . 3 2 . . . 6 . . 1 . 5 Max in Single Turn 4 | . . 2 2 . . . 4 . . . . 4 Garrison Access 2 | . . . . . . . 2 . . . . . Machines Repaired . | . . . . . . . . . . . . . Machines Dismantled . | . . . . . . . . . . . . . Machines Sabotaged . | . . . . . . . . . . . . . Overloaded Fab Kills . | . . . . . . . . . . . . . Hacking | -11 -10 -9 -8 -7 -6 -6 -5 -5 -5 -5 -4 -4 --------- Run | Yrd Mat Mat Mat Fac Fac DSF Fac Upp Upp War Pro Fac Machines Accessed 30 | . 1 4 3 3 1 . 5 . . 9 . 4 Terminals 13 | . 1 3 2 2 1 . 1 . . . . 3 Fabricators 2 | . . . . . . . 1 . . . . 1 Repair Stations . | . . . . . . . . . . . . . Recycling Units 1 | . . . 1 . . . . . . . . . Scanalyzers 1 | . . 1 . . . . . . . . . . Garrison Access 4 | . . . . 1 . . 3 . . . . . Total Hacks 72 | . 4 22 14 4 1 . 8 . . 10 . 9 Successful 36 | . 1 10 6 2 1 . 3 . . 10 . 3 Failed 36 | . 3 12 8 2 . . 5 . . . . 6 Catastrophic 4 | . . . . 1 . . 2 . . . . 1 Database Lockouts . | . . . . . . . . . . . . . Manual 17 | . 4 1 4 1 . . 3 . . . . 4 Terminals 43 | . 4 15 10 3 1 . 2 . . . . 8 Fabricators 3 | . . . . . . . 2 . . . . 1 Repair Stations . | . . . . . . . . . . . . . Recycling Units 4 | . . . 4 . . . . . . . . . Scanalyzers 7 | . . 7 . . . . . . . . . . Garrison Access 5 | . . . . 1 . . 4 . . . . . Terminal Hacks 21 | . . 4 3 1 1 . . . . 10 . 2 Record 9 | . . . . . . . . . . 9 . . Robot Analysis 1 | . . . 1 . . . . . . . . . Prototype ID Bank 2 | . . 2 . . . . . . . . . . Open Door 1 | . . . . . . . . . . 1 . . Open DSF 3 | . . . . 1 1 . . . . . . 1 Branch Access Points 1 | . . . 1 . . . . . . . . . Emergency Access Points 1 | . . . 1 . . . . . . . . . Locate Traps 1 | . . . . . . . . . . . . 1 Zone Layout 2 | . . 2 . . . . . . . . . . Fabricator Hacks . | . . . . . . . . . . . . . Repair Station Hacks . | . . . . . . . . . . . . . Recycling Unit Hacks 1 | . . . 1 . . . . . . . . . Retrieve Components 1 | . . . 1 . . . . . . . . . Scanalyzer 6 | . . 6 . . . . . . . . . . Insert Component 3 | . . 3 . . . . . . . . . . Analyze 3 | . . 3 . . . . . . . . . . Garrison Access Hacks . | . . . . . . . . . . . . . Unauthorized Hacks 8 | . 1 . 2 1 . . 3 . . . . 1 Terminals 3 | . 1 . 1 . . . . . . . . 1 Botnet 3 | . 1 . 1 . . . . . . . . 1 Fabricators . | . . . . . . . . . . . . . Repair Stations . | . . . . . . . . . . . . . Recycling Units 1 | . . . 1 . . . . . . . . . Reject 1 | . . . 1 . . . . . . . . . Scanalyzers . | . . . . . . . . . . . . . Garrison Access 4 | . . . . 1 . . 3 . . . . . Watchers 2 | . . . . 1 . . 1 . . . . . Jam 2 | . . . . . . . 2 . . . . . Data Cores Recovered . | . . . . . . . . . . . . . Used . | . . . . . . . . . . . . . Hacking Detections 16 | . 1 4 2 2 . . 4 . . . . 3 Full Trace Events 4 | . 1 1 . 1 . . . . . . . 1 Feedback Events . | . . . . . . . . . . . . . Feedback Blocked . | . . . . . . . . . . . . . Robot Schematics Acquired . | . . . . . . . . . . . . . Robots Built . | . . . . . . . . . . . . . Authchips . | . . . . . . . . . . . . . Time . | . . . . . . . . . . . . . Total Robot Build Rating . | . . . . . . . . . . . . . Part Schematics Acquired 3 | . . 3 . . . . . . . . . . Parts Built . | . . . . . . . . . . . . . Authchips . | . . . . . . . . . . . . . Time . | . . . . . . . . . . . . . Total Part Build Rating . | . . . . . . . . . . . . . Parts Repaired . | . . . . . . . . . . . . . Time . | . . . . . . . . . . . . . Parts Recycled . | . . . . . . . . . . . . . Recycled Matter . | . . . . . . . . . . . . . Retrieved Matter . | . . . . . . . . . . . . . Retrieved Components 2 | . . . 2 . . . . . . . . . Parts Scanalyzed 3 | . . 3 . . . . . . . . . . Part Schematics Acquired 3 | . . 3 . . . . . . . . . . Parts Damaged . | . . . . . . . . . . . . . Bothacking | -11 -10 -9 -8 -7 -6 -6 -5 -5 -5 -5 -4 -4 ------------ Run | Yrd Mat Mat Mat Fac Fac DSF Fac Upp Upp War Pro Fac Used RIF Installer . | . . . . . . . . . . . . . Robots Hacked 1 | . . . . . . . . . . . 1 . Non-combat . | . . . . . . . . . . . . . Combat . | . . . . . . . . . . . . . Robot Hacks Applied . | . . . . . . . . . . . . . Manual 1 | . . . . . . . . . . . 1 . Relay Couplers Released . | . . . . . . . . . . . . . Fabnet Peak Effective % . | . . . . . . . . . . . . . Robots Rewired 7 | . . . . . . . . . . 7 . . Allies Hacked . | . . . . . . . . . . . . . Hacks Repelled . | . . . . . . . . . . . . . Allies | -11 -10 -9 -8 -7 -6 -6 -5 -5 -5 -5 -4 -4 -------- Run | Yrd Mat Mat Mat Fac Fac DSF Fac Upp Upp War Pro Fac Total Allies 8 | . . . . . . . . . . 7 1 . Largest Group 7 | . . . . . . . . . . 7 7 5 Highest-Rated Group 376 | . . . . . . . . . . 335 376 260 Highest-Rated Ally 116 | . . . . . . . . . . 65 116 65 Total Orders 3 | . . . . . . . 2 1 . . . . EXPLORE 3 | . . . . . . . 2 1 . . . . Ally Attacks 48 | . . . . . . . . . . 7 22 19 Total Damage 1629 | . . . . . . . . . . 328 693 608 Kills 16 | . . . . . . . . . . 5 6 5 Allies Corrupted . | . . . . . . . . . . . . . Allies Melted . | . . . . . . . . . . . . . Intel | -11 -10 -9 -8 -7 -6 -6 -5 -5 -5 -5 -4 -4 ------- Run | Yrd Mat Mat Mat Fac Fac DSF Fac Upp Upp War Pro Fac Robot Analysis Total 1 | . . . 1 . . . . . . . . . Derelict Logs Recovered 2 | . . . . . . . . . . . 2 . Drone Launches 5 | . . . . . . . 3 2 . . . . Drone Recoveries 3 | . . . . . . . 2 1 . . . . Exploration | -11 -10 -9 -8 -7 -6 -6 -5 -5 -5 -5 -4 -4 ------------- Run | Yrd Mat Mat Mat Fac Fac DSF Fac Upp Upp War Pro Fac Turns Passed 3509 | 60 94 299 186 130 5 32 443 152 123 461 551 973 Spaces Moved 4742 | 47 69 374 314 369 16 62 859 425 442 764 479 522 Core 57 | 12 . . 4 . . . 12 . . . . 29 Treads 120 | . . . . . . . . . . . . 120 Legs 140 | 26 69 44 . . . . . . . . . 1 Wheels 191 | 9 . . 2 . . . . . . . . 180 Hover 1503 | . . 330 48 . . . . . . 454 479 192 Flight 2731 | . . . 260 369 16 62 847 425 442 310 . . Fastest Speed 20 | 50 120 52 29 20 29 23 28 26 26 26 53 48 Average Speed 48 | 94 120 60 36 28 29 32 30 28 26 46 53 113 Slowest Speed 300 | 120 120 120 200 29 29 40 100 112 26 140 53 300 Overloaded Moves 36 | . . . . 9 . 27 . . . . . . Propulsion Burnouts . | . . . . . . . . . . . . . Robots Hopped 12 | . . . . 3 . . 9 . . . . . Cave-ins Triggered . | . . . . . . . . . . . . . Exploration Rate (%) 37 | 3 14 31 38 17 1 82 29 65 58 86 48 13 Regions Visited 12 Branch Regions 4 Pre-discovered Areas . | . . . . . . . . . . . . . Known Exits Taken 4 | . . 1 1 1 1 . . . . . . . Unknown Exits Taken 7 | 1 1 . . . . . 1 1 1 1 1 . Scrap Searched 5 | . . . . . . . . 1 3 . 1 . Spaces Dug 33 | . . . . . . . . . . . . 33 Terrain Destroyed 313 | . . 88 95 . . . 70 1 . 1 3 55 Melee . | . . . . . . . . . . . . . Projectile 19 | . . . . . . . 2 1 . 1 3 12 AOE 294 | . . 88 95 . . . 68 . . . . 43 Terrain Rammed . | . . . . . . . . . . . . . Walls Destroyed . | . . . . . . . . . . . . . Machines Disabled . | . . . . . . . . . . . . . Actions | -11 -10 -9 -8 -7 -6 -6 -5 -5 -5 -5 -4 -4 --------- Run | Yrd Mat Mat Mat Fac Fac DSF Fac Upp Upp War Pro Fac Total 5666 | 62 80 415 365 387 15 75 991 441 448 865 764 758 Wait 428 | . 10 1 11 1 . . 69 4 1 27 274 30 Move 4706 | 46 68 373 313 362 15 61 840 424 441 763 478 522 Hop 12 | . . . . 3 . . 9 . . . . . Pick Up 91 | 9 2 9 11 . . 5 13 2 2 6 . 32 Fast Attach 37 | . . 2 2 3 . 3 6 . 2 10 . 9 Attach 66 | 6 . 2 11 . . . 15 2 1 1 . 28 Detach 7 | . . . 2 . . . 2 . . 1 . 2 Swap 16 | 1 . 4 . . . . . . . 2 . 9 Drop 53 | . . 7 3 . . 6 1 1 1 15 . 19 Fire 139 | . . 17 12 . . . 27 8 . 8 8 59 Melee 46 | . . . . . . . . . . . 4 42 Ram 14 | . . . . . . . 9 . . . . 5 Kick . | . . . . . . . . . . . . . Crush . | . . . . . . . . . . . . . Escape Stasis 18 | . . . . 18 . . . . . . . . Rewire 32 | . . . . . . . . . . 32 . . Trap 1 | . . . . . . . . . . . . 1 Miscellaneous . | . . . . . . . . . . . . . Route ------- -11/Scrapyard -10/Materials -9/Materials -8/Materials -7/Factory -6/Factory -6/DSF -5/Factory (discovered 2 exits: *Fac / [*Upp]) -5/Upper Caves -5/Upper Caves (discovered 2 exits: *Fac / *War) -5/Warlord -4/Proximity Caves -4/Factory History --------- Turn | Location | Event 10 | -11/Scrapyard | Discovered new exit (range 16) 61 | -11/Scrapyard | Entered Materials 131 | -10/Materials | Discovered new exit (range 15) 155 | -10/Materials | Entered another Materials area 155 | -9/Materials | Evolved 2 slots: Propulsion x1, Utility x1 296 | -9/Materials | Destroyed 9 combat bots 309 | -9/Materials | Build established: Mutant 434 | -9/Materials | Discovered new exit (range 10) 439 | -9/Materials | Identified exit to Materials 454 | -9/Materials | Entered another Materials area 454 | -8/Materials | Evolved 2 slots: Propulsion x1, Utility x1 570 | -8/Materials | Lost 10 parts (1p4n2u3w) 636 | -8/Materials | Discovered new exit (range 10) 639 | -8/Materials | Identified exit to Factory 640 | -8/Materials | Entered Factory 640 | -7/Factory | Evolved 2 slots: Power x1, Utility x1 762 | -7/Factory | Discovered new exit (range 14) 770 | -7/Factory | Identified exit to Factory 770 | -7/Factory | Entered another Factory area 770 | -6/Factory | Evolved 2 slots: Utility x2 775 | -6/Factory | Identified exit to DSF 775 | -6/Factory | Entered DSF 787 | -6/DSF | Discovered new exit (range 16) 794 | -6/DSF | Additional patrols routed to DSF 807 | -6/DSF | Entered Factory 807 | -5/Factory | Evolved 2 slots: Utility x1, Weapon x1 824 | -5/Factory | Lost 5 parts (4n1u) 886 | -5/Factory | Lost 3 parts (2n1u) 1098 | -5/Factory | Lost 3 parts (2n1w) 1223 | -5/Factory | Build established: Sprinter 1248 | -5/Factory | Discovered new exit (range 9) 1250 | -5/Factory | Discovered new exit (range 16) 1250 | -5/Factory | Entered Upper Caves 1394 | -5/Upper Caves | Lost 4 parts (2n2w) 1395 | -5/Upper Caves | Discovered new exit (range 8) 1402 | -5/Upper Caves | Entered another Upper Caves area 1407 | -5/Upper Caves | Discovered new exit (range 18) 1464 | -5/Upper Caves | Encountered a Warlord checkpoint 1471 | -5/Upper Caves | Discovered new exit (range 11) 1525 | -5/Upper Caves | Entered Warlord 1534 | -5/Warlord | System corruption cleaned by Quarantine Array 1653 | -5/Warlord | Visited the Vortex Lab 1657 | -5/Warlord | Found Prototype Piercing Weapon 1657 | -5/Warlord | Identified Vortex Lance 1660 | -5/Warlord | Warlord's base attacked by MAIN.C 1660 | -5/Warlord | Found Prototype Energy Gun 1661 | -5/Warlord | Identified Vortex Rifle 1664 | -5/Warlord | Found Vortex Rifle 1715 | -5/Warlord | Learned Armory trap positions 1715 | -5/Warlord | Learned Research emergency access door positions 1716 | -5/Warlord | Learned 4 Testing zone layouts 1717 | -5/Warlord | Learned Armory scanalyzer intel 1741 | -5/Warlord | Met Warlord 1896 | -5/Warlord | Build established: Derelict-Mutant 1915 | -5/Warlord | Warlord forces counterattacked 1963 | -5/Warlord | Discovered new exit (range 12) 1986 | -5/Warlord | Entered Proximity Caves 1986 | -4/Proximity Caves | Accompanied by 7 allies 2039 | -4/Proximity Caves | Attracted the attention of an 0b10 checkpoint 2075 | -4/Proximity Caves | Spotted B-86 Titan 2107 | -4/Proximity Caves | Learned Research terminal intel 2238 | -4/Proximity Caves | Received a Behemoth hack from an annoying Tinkerer 2381 | -4/Proximity Caves | Befriended a Behemoth using the annoying Tinkerer's hack 2451 | -4/Proximity Caves | Learned Research non-interactive machine intel 2503 | -4/Proximity Caves | Discovered new exit (range 6) 2537 | -4/Proximity Caves | Entered Factory 2537 | -4/Factory | Accompanied by 5 allies 2537 | -4/Factory | Evolved 2 slots: Utility x2 2985 | -4/Factory | Spotted B-86 Titan 3019 | -4/Factory | Build established: Hacker-Gunner 3054 | -4/Factory | Destroyed B-86 Titan 3182 | -4/Factory | Lost 9 parts (1p3n3u2w) 3267 | -4/Factory | Lost 4 parts (2n2u) 3336 | -4/Factory | Lost 3 parts (1p1n1w) 3425 | -4/Factory | Lost 9 parts (1p3n3u2w) 3471 | -4/Factory | Core integrity fell below 50% 3495 | -4/Factory | Core integrity fell below 20% 3510 | -4/Factory | Destroyed by S-27 Virus with Autogun Last Messages --------------- Wheel destroyed. Imp. Force Booster destroyed. Imp. Targeting Computer destroyed. R-10 Processor collects Lgt. Ion Engine. G-67 Veteran Flexi-carbon Leg severed. Power Sword destroyed. Plasma Rifle destroyed. Dropped Neutrino Core. Dropped Microactuators. Adv. Melee Analysis Suite destroyed. Field Laser destroyed. Critical hit (Burn: +37). Dropped Sapper Charge. Slammed into P-70 Sage. Started Sapper Charge timer (8). Slammed into P-70 Sage. Critical hit (Burn: +50). K-01 Serf cleans the Assembly Bed. Armed Sapper Charge explodes. M-28 Smith destroyed. Map ----- +----------------------------------------------------+ | ???????????????????????????????????# ##[%"""" " | | ?????????????????????????????????### % ##! """" " | | ?????????????????????????????????## ##%%"""" " | | ?????????????????????????????????## %##%!"""" " | | ?????????????????????????????????## % %+%!"""" " | | ?????????????????????????????????### ##### !* | | ???????????????????????????????????#=##"?######### | | ?????????????????????????????????##"%# ??????????? | | ????????????????????????????????? "=" ??????????? | | ????????????????????????????????# "*" ??????????? | | ????????????????????????????????# !!% ??????????? | | ????????????????????????????????# "=" ??????????? | | ????????????????????????????????# " " ??????????? | | ????????????????????????????????# " " ??????????? | | ????????????????????????????????#""""""###???????? | | ????????????????????????????????# +???????? | | ????????????????????????????????#! #???????? | | ????????????????????????????????# """" #???????? | | ????????????????????????????????# """" #???????? | | ????????????????????????????????# """" ###?????? | | ????????????????????????????????# """" / ??????? | | ????????????????????????????????# """" #???????? | | ????????????????????????????????# """" #???????? | | ????????????????????????????????# #???????# | | ???????????????#########+#############/#"### # | | ???????????????# @ ss | | ???????????????# p s | | ???????????????# R sp | | ???????????????+ | | ???????????????# | | ???????????????# #############T##########+#### | | ???????????????# ????????????###?????????? ?? | | ???????????????# ??????????????????????????? | | ???????????????# ?????????????????????????????"" | | ???????????????# ???????????????????????????????? | | ???????????????# ????????????????????????????????? | | ???????????????#?????????????????????????????????? | | ?????????????????????????????????????????????????? | | ?????????????????????????????????????????????????? | | ?????????????????????????????????????????????????? | | ?????????????????????????????????????????????????? | | ?????????????????????????????????????????????????? | | ?????????????????????????????????????????????????? | | ?????????????????????????????????????????????????? | | ?????????????????????????????????????????????????? | | ?????????????????????????????????????????????????? | | ?????????????????????????????????????????????????? | | ?????????????????????????????????????????????????? | | ?????????????????????????????????????????????????? | | ?????????????????????????????????????????????????? | +----------------------------------------------------+ Best States ------------- Heat Dissipation 119 Coolant Potential 80 Energy Generation 33 Energy Capacity 690 Matter Stores 300 Matter Capacity 300 Sight Range 22 Robot Scan Range 15 Terrain Scan Density 10 Jamming Range 14 Armor Coverage 450 Melee Speed Boost 20 Evasion (%) 65 Targeting Accuracy 18 Melee Accuracy 8 Recoil Reduction 4 Kinecelleration 40 Force Boost 30 Salvage Targeting 3 Offensive Hacking 12 Defensive Hacking 14 Item Schematics ----------------- Rocket Launcher | -9/Materials | Scanalyzed Lrg. Storage Unit | -9/Materials | Scanalyzed Imp. Hover Unit | -9/Materials | Scanalyzed Robot Schematics ------------------ None Fabricated ------------ Nothing Alien Tech Used ----------------- None Achievements -------------- Woof! Challenges ------------ None Game ------ Seed CouplerWardroneBoomstick Manual? 0 Play Time 01:40:26 Cumulative 78.6 hours Start 2024.05.04 @ 10:18:12 End 2024.05.05 @ 05:54:34 Sessions 5 Manual Loads 0 Difficulty Rogue Special Mode None Game No. 87 Rogue 78 Adventurer 9 Explorer 0 Win Type - Total 0 Types 0/0/0/0/0/0/0/0/0 Lore% 45 Gallery% 57 Achievement% 43 Wizard Run 0 Options --------- Layout 1 ASCII 0 Keyboard 0 Movement Numpad Keybinds 0 Fullscreen 1 Font 24/Smallcaps Map View 50x35 Zoom Use 0% Tactical HUD 0 Map Filters NONE Filters NONE Steam 1 RUN: 35aedb2e-f694-4812-9656-298da47ae926